fUSD/lending_fUSD_20250916
["ID","MTS","AMOUNT","RATE_DAILY","PERIOD"]
[385836256,1758058273347,-400.0,0.00033486,6]
[385836257,1758058273356,-400.0,0.00033486,6]
[385836258,1758058273366,-291.63838173,0.00033486,6]
[385836259,1758058273375,-779.04,0.00033486,6]
[385836260,1758058273384,-11748.77,0.00033486,6]
[385836261,1758058273393,-400.0,0.00033486,6]
[385836262,1758058273402,-846.77,0.00033486,6]
[385836263,1758058273412,-816.88,0.00033486,6]
[385836264,1758058273421,-417.79,0.00033486,6]
[385836265,1758058273431,-617.06,0.00033486,6]
[385836266,1758058273440,-956.08,0.00033486,6]
[385836267,1758058273450,-500.0,0.000335,7]
[385836268,1758058273458,-1000.0,0.0003352,7]
[385836269,1758058273469,-262.69,0.00033534,30]
[385836270,1758058273479,-1000.0,0.00033568,7]
[385836271,1758058273488,-1000.0,0.00033593,7]
[385836272,1758058273497,-3581.74,0.000336,14]
[385836273,1758058273507,-151.0,0.000336,7]
[385836274,1758058273518,-151.0,0.000336,7]
[385836275,1758058273528,-151.0,0.000336,7]
[385836276,1758058273539,-500.0,0.00033602,7]
[385836277,1758058273549,-1000.0,0.00033625,7]
[385836278,1758058273561,-201.4,0.00033627,2]
[385836279,1758058273571,-400.0,0.00033659,6]
[385836280,1758058273582,-253.64659491,0.00033659,6]
[385836281,1758058273593,-400.0,0.00033659,6]
[385836282,1758058273604,-400.0,0.00033659,6]
[385836283,1758058273614,-1275.83,0.00033659,6]
[385836284,1758058273623,-408.95,0.00033659,6]
[385836285,1758058273634,-400.0,0.00033659,6]
[385836286,1758058273643,-467.76,0.00033659,6]
[385836287,1758058273652,-400.0,0.00033659,6]
[385836288,1758058273664,-833.72,0.00033659,6]
[385836289,1758058273673,-400.0,0.00033659,6]
[385836290,1758058273683,-400.0,0.00033659,6]
[385836291,1758058273692,-529.33,0.00033659,6]
[385836292,1758058273702,-935.51,0.00033659,6]
[385836293,1758058273711,-539.44,0.00033659,6]
[385836294,1758058273722,-600.0,0.00033668,7]
[385836295,1758058273732,-500.0,0.0003367,7]
[385836296,1758058273741,-1000.0,0.00033683,7]
[385836297,1758058273751,-700.0,0.00033696,7]
[385836298,1758058273760,-885.22,0.00033696,6]
[385836299,1758058273769,-882.33,0.00033696,6]
[385836300,1758058273780,-400.0,0.00033696,6]
[385836301,1758058273790,-583.88,0.00033696,6]
[385836302,1758058273801,-400.0,0.00033697,6]
[385836303,1758058273811,-400.0,0.00033697,6]
[385836304,1758058273821,-400.0,0.00033697,6]
[385836305,1758058273832,-400.0,0.00033697,6]
[385836306,1758058273842,-400.0,0.00033697,6]
[385836307,1758058273851,-1030.84,0.00033697,6]
[385836308,1758058273861,-400.0,0.00033697,6]
[385836309,1758058273870,-893.45,0.00033697,6]
[385836310,1758058273884,-1390.25,0.00033697,6]
[385836311,1758058273894,-846.78,0.00033697,6]
[385836312,1758058273904,-400.0,0.00033697,6]
[385836313,1758058273915,-463.17,0.00033697,6]
[385836314,1758058273924,-400.0,0.00033697,120]
[385836315,1758058273934,-400.0,0.00033697,6]
[385836316,1758058273943,-400.0,0.00033697,6]
[385836317,1758058273954,-400.0,0.00033697,6]
[385836318,1758058273964,-400.0,0.00033697,6]
[385836319,1758058273974,-405.15,0.00033697,6]
[385836320,1758058273984,-400.0,0.00033697,6]
[385836321,1758058273993,-544.6,0.00033697,6]
[385836322,1758058274004,-400.0,0.00033697,6]
[385836323,1758058274013,-579.99,0.00033697,6]
[385836324,1758058274023,-400.0,0.00033697,6]
[385836325,1758058274032,-1324.78,0.00033697,6]
[385836326,1758058274042,-400.0,0.00033697,6]
[385836327,1758058274052,-400.0,0.00033697,6]
[385836328,1758058274062,-400.0,0.00033697,6]
[385836329,1758058274071,-1741.21,0.00033697,6]
[385836330,1758058274082,-400.0,0.00033697,6]
[385836331,1758058274091,-400.0,0.00033697,6]
[385836332,1758058274100,-709.37,0.00033697,6]
[385836333,1758058274110,-1543.15,0.00033697,6]
[385836334,1758058274119,-400.0,0.00033697,6]
[385836335,1758058274128,-559.75,0.00033697,6]
[385836336,1758058274138,-400.0,0.00033697,6]
[385836337,1758058274147,-400.0,0.00033697,6]
[385836338,1758058274156,-400.0,0.00033697,6]
[385836339,1758058274166,-2637.68,0.00033697,6]
[385836340,1758058274175,-400.0,0.00033697,6]
[385836341,1758058274184,-400.0,0.00033697,6]
[385836342,1758058274193,-635.22,0.00033697,6]
[385836343,1758058274203,-2060.24,0.00033697,6]
[385836344,1758058274213,-400.0,0.00033697,6]
[385836345,1758058274223,-440.36,0.00033697,6]
[385836346,1758058274232,-400.0,0.00033697,6]
[385836347,1758058274242,-1367.84,0.00033697,6]
[385836348,1758058274251,-400.0,0.00033697,6]
[385836349,1758058274261,-400.0,0.00033697,6]
[385836350,1758058274269,-1696.13,0.00033697,6]
[385836351,1758058274278,-537.85,0.00033697,6]
[385836352,1758058274287,-400.0,0.00033697,6]
[385836353,1758058274297,-428.76,0.00033697,6]
[385836354,1758058274306,-806.85,0.00033697,6]
[385836355,1758058274315,-400.0,0.00033697,6]
[385836356,1758058274324,-549.91,0.00033697,6]
[385836357,1758058274333,-2321.08,0.00033697,6]
[385836358,1758058274342,-400.0,0.00033697,6]
[385836359,1758058274352,-777.31,0.00033697,6]
[385836360,1758058274361,-400.0,0.00033697,6]
[385836361,1758058274370,-614.12,0.00033697,6]
[385836362,1758058274381,-400.0,0.00033697,6]
[385836363,1758058274391,-400.0,0.00033697,6]
[385836364,1758058274401,-400.0,0.00033697,6]
[385836365,1758058274410,-400.0,0.00033697,6]
[385836366,1758058274421,-400.0,0.00033697,6]
[385836367,1758058274431,-400.0,0.00033697,6]
[385836368,1758058274442,-400.0,0.00033697,6]
[385836369,1758058274451,-400.0,0.00033697,6]
[385836370,1758058274460,-472.73,0.00033697,6]
[385836371,1758058274471,-400.0,0.00033697,6]
[385836372,1758058274480,-1041.29,0.00033697,6]
[385836373,1758058274489,-400.0,0.00033697,6]
[385836374,1758058274498,-400.0,0.00033697,6]
[385836375,1758058274507,-400.0,0.00033697,6]
[385836376,1758058274516,-730.67,0.00033697,6]
[385836377,1758058274525,-643.91,0.00033697,6]
[385836378,1758058274534,-2927.23,0.00033697,6]
[385836379,1758058274543,-400.0,0.00033697,6]
[385836380,1758058274552,-461.14,0.00033698,6]
[385836381,1758058274563,-400.0,0.00033698,6]
[385836382,1758058274572,-400.0,0.00033698,6]
[385836383,1758058274581,-400.0,0.00033698,6]
[385836384,1758058274590,-530.21,0.00033698,6]
[385836385,1758058274600,-727.34,0.00033698,6]
[385836386,1758058274609,-531.6,0.00033698,6]
[385836387,1758058274618,-2312.57,0.00033698,6]
[385836388,1758058274628,-586.9,0.00033698,6]
[385836389,1758058274637,-400.0,0.00033698,6]
[385836390,1758058274646,-627.93,0.00033698,6]
[385836391,1758058274655,-753.33,0.00033698,6]
[385836392,1758058274665,-400.0,0.00033698,6]
[385836393,1758058274674,-326.56801237,0.00033698,6]
[385836394,1758058274683,-589.16,0.00033698,6]
[385836395,1758058274693,-609.41,0.00033698,6]
[385836396,1758058274702,-510.36,0.00033698,6]
[385836397,1758058274711,-684.2,0.00033698,6]
[385836398,1758058274720,-400.0,0.00033698,6]
[385836399,1758058274729,-511.86,0.00033698,6]
[385836400,1758058274739,-2593.28,0.00033698,6]
[385836401,1758058274748,-764.41,0.00033698,6]
[385836402,1758058274760,-409.5,0.00033698,6]
[385836403,1758058274770,-594.69,0.00033698,6]
[385836404,1758058274780,-400.0,0.00033698,6]
[385836405,1758058274790,-563.64,0.00033698,6]
[385836406,1758058274799,-918.03,0.00033698,6]
[385836407,1758058274808,-955.33,0.00033698,6]
[385836408,1758058274818,-3040.54,0.00033698,6]
[385836409,1758058274827,-659.68,0.00033698,6]
[385836410,1758058274837,-594.06,0.00033698,6]
[385836411,1758058274845,-400.0,0.00033698,6]
[385836412,1758058274855,-585.22,0.00033698,6]
[385836413,1758058274865,-483.06,0.00033698,6]
[385836414,1758058274875,-700.0,0.00033706,7]
[385836415,1758058274887,-500.0,0.00033738,7]
[385836416,1758058274897,-400.0,0.0003376,6]
[385836417,1758058274906,-394.77,0.0003376,6]
[385836418,1758058274915,-400.0,0.0003376,6]
[385836419,1758058274927,-400.0,0.0003376,6]
[385836420,1758058274939,-439.88,0.0003376,6]
[385836421,1758058274948,-400.0,0.0003376,6]
[385836422,1758058274959,-400.0,0.0003376,6]
[385836423,1758058274969,-595.63,0.0003376,6]
[385836424,1758058274978,-400.0,0.0003376,6]
[385836425,1758058274987,-461.84,0.0003376,6]
[385836426,1758058274997,-924.18,0.0003376,6]
[385836427,1758058275006,-400.0,0.0003376,6]
[385836428,1758058275015,-400.0,0.0003376,6]
[385836429,1758058275024,-400.0,0.0003376,6]
[385836430,1758058275034,-779.04,0.0003376,6]
[385836431,1758058275045,-11748.77,0.0003376,6]
[385836432,1758058275056,-400.0,0.0003376,6]
[385836433,1758058275067,-846.77,0.0003376,6]
[385836434,1758058275077,-816.88,0.0003376,6]
[385836435,1758058275087,-417.79,0.0003376,6]
[385836436,1758058275097,-617.06,0.0003376,6]
[385836437,1758058275107,-956.08,0.0003376,6]
[385836438,1758058275116,-1000.0,0.00033798,7]
[385836439,1758058275126,-500.0,0.00033807,7]
[385836440,1758058275135,-700.0,0.00033819,7]
[385836441,1758058275144,-500.0,0.00033843,7]
[385836442,1758058275155,-3118.62,0.00033844,2]
[385836443,1758058275165,-499.99,0.00033844,2]
[385836444,1758058275174,-417.24,0.00033844,15]
[385836445,1758058275184,-6055.0,0.00033844,2]
[385836446,1758058275194,-9096.2,0.00033844,15]
[385836447,1758058275205,-4074.1,0.00033844,2]
[385836448,1758058275214,-9999.99,0.00033844,2]
[385836449,1758058275225,-9999.99,0.00033844,2]
[385836450,1758058275235,-150.99,0.00033844,2]
[385836451,1758058275246,-999.99,0.00033844,2]
[385836452,1758058275256,-9999.99,0.00033844,2]
[385836453,1758058275265,-564.55042715,0.00033852,2]
[385836454,1758058275275,-1000.0,0.00033916,7]
[385836455,1758058275285,-600.0,0.00033926,7]
[385836456,1758058275296,-500.0,0.00033932,7]
[385836457,1758058275306,-400.0,0.00033933,6]
[385836458,1758058275317,-400.0,0.00033933,6]
[385836459,1758058275328,-400.0,0.00033933,6]
[385836460,1758058275338,-1275.83,0.00033933,6]
[385836461,1758058275349,-408.95,0.00033933,6]
[385836462,1758058275359,-400.0,0.00033933,6]
[385836463,1758058275368,-467.76,0.00033933,6]
[385836464,1758058275378,-400.0,0.00033933,6]
[385836465,1758058275387,-833.72,0.00033933,6]
[385836466,1758058275396,-400.0,0.00033933,6]
[385836467,1758058275406,-400.0,0.00033933,6]
[385836468,1758058275415,-529.33,0.00033933,6]
[385836469,1758058275424,-935.51,0.00033933,6]
[385836470,1758058275434,-539.44,0.00033933,6]
[385836471,1758058275443,-900.0,0.00033934,7]
[385836472,1758058275453,-965.28718445,0.00033966,7]
[385836473,1758058275462,-885.22,0.0003397,6]
[385836474,1758058275472,-882.33,0.0003397,6]
[385836475,1758058275484,-400.0,0.0003397,6]
[385836476,1758058275497,-583.88,0.0003397,6]
[385836477,1758058275508,-400.0,0.00033971,6]
[385836478,1758058275518,-400.0,0.00033971,6]
[385836479,1758058275528,-400.0,0.00033971,6]
[385836480,1758058275540,-400.0,0.00033971,6]
[385836481,1758058275550,-328.20281239,0.00033971,6]
[385836482,1758058275559,-1030.84,0.00033971,6]
[385836483,1758058275569,-400.0,0.00033971,6]
[385836484,1758058275579,-893.45,0.00033971,6]
[385836485,1758058275590,-1390.25,0.00033971,6]
[385836486,1758058275601,-846.78,0.00033971,6]
[385836487,1758058275611,-400.0,0.00033971,6]
[385836488,1758058275621,-463.17,0.00033971,6]
[385836489,1758058275634,-400.0,0.00033971,120]
[385836490,1758058275644,-400.0,0.00033971,6]
[385836491,1758058275653,-400.0,0.00033971,6]
[385836492,1758058275663,-400.0,0.00033971,6]
[385836493,1758058275674,-400.0,0.00033971,6]
[385836494,1758058275686,-304.1077376,0.00033971,6]
[385836495,1758058275695,-405.15,0.00033971,6]
[385836496,1758058275706,-544.6,0.00033971,6]
[385836497,1758058275715,-400.0,0.00033971,6]
[385836498,1758058275725,-579.99,0.00033971,6]
[385836499,1758058275735,-400.0,0.00033971,6]
[385836500,1758058275744,-1324.78,0.00033971,6]
[385836501,1758058275754,-400.0,0.00033971,6]
[385836502,1758058275763,-400.0,0.00033971,6]
[385836503,1758058275772,-1741.21,0.00033971,6]
[385836504,1758058275782,-400.0,0.00033971,6]
[385836505,1758058275792,-400.0,0.00033971,6]
[385836506,1758058275802,-400.0,0.00033971,6]
[385836507,1758058275812,-709.37,0.00033971,6]
[385836508,1758058275822,-1543.15,0.00033971,6]
[385836509,1758058275832,-400.0,0.00033971,6]
[385836510,1758058275842,-559.75,0.00033971,6]
[385836511,1758058275852,-400.0,0.00033971,6]
[385836512,1758058275862,-400.0,0.00033971,6]
[385836513,1758058275871,-400.0,0.00033971,6]
[385836514,1758058275887,-2637.68,0.00033971,6]
[385836515,1758058275896,-400.0,0.00033971,6]
[385836516,1758058275907,-635.22,0.00033971,6]
[385836517,1758058275918,-2060.24,0.00033971,6]
[385836518,1758058275928,-440.36,0.00033971,6]
[385836519,1758058275937,-400.0,0.00033971,6]
[385836520,1758058275947,-223.47037283,0.00033971,6]
[385836521,1758058275957,-1367.84,0.00033971,6]
[385836522,1758058275967,-400.0,0.00033971,6]
[385836523,1758058275976,-400.0,0.00033971,6]
[385836524,1758058275986,-1696.13,0.00033971,6]
[385836525,1758058275996,-400.0,0.00033971,6]
[385836526,1758058276006,-537.85,0.00033971,6]
[385836527,1758058276019,-428.76,0.00033971,6]
[385836528,1758058276029,-806.85,0.00033971,6]
[385836529,1758058276038,-400.0,0.00033971,6]
[385836530,1758058276048,-549.91,0.00033971,6]
[385836531,1758058276059,-2321.08,0.00033971,6]
[385836532,1758058276070,-400.0,0.00033971,6]
[385836533,1758058276079,-777.31,0.00033971,6]
[385836534,1758058276089,-400.0,0.00033971,6]
[385836535,1758058276100,-614.12,0.00033971,6]
[385836536,1758058276110,-400.0,0.00033971,6]
[385836537,1758058276122,-400.0,0.00033971,6]
[385836538,1758058276132,-400.0,0.00033971,6]
[385836539,1758058276142,-400.0,0.00033971,6]
[385836540,1758058276152,-400.0,0.00033971,6]
[385836541,1758058276162,-400.0,0.00033971,6]
[385836542,1758058276171,-400.0,0.00033971,6]
[385836543,1758058276181,-472.73,0.00033971,6]
[385836544,1758058276190,-400.0,0.00033971,6]
[385836545,1758058276201,-400.0,0.00033971,6]
[385836546,1758058276212,-1041.29,0.00033971,6]
[385836547,1758058276221,-400.0,0.00033971,6]
[385836548,1758058276232,-400.0,0.00033971,6]
[385836549,1758058276242,-400.0,0.00033971,6]
[385836550,1758058276252,-730.67,0.00033971,6]
[385836551,1758058276262,-643.91,0.00033971,6]
[385836552,1758058276272,-2927.23,0.00033971,6]
[385836553,1758058276282,-400.0,0.00033971,6]
[385836554,1758058276292,-461.14,0.00033972,6]
[385836555,1758058276302,-400.0,0.00033972,6]
[385836556,1758058276312,-400.0,0.00033972,6]
[385836557,1758058276322,-400.0,0.00033972,6]
[385836558,1758058276332,-530.21,0.00033972,6]
[385836559,1758058276342,-727.34,0.00033972,6]
[385836560,1758058276351,-531.6,0.00033972,6]
[385836561,1758058276361,-2312.57,0.00033972,6]
[385836562,1758058276370,-586.9,0.00033972,6]
[385836563,1758058276381,-400.0,0.00033972,6]
[385836564,1758058276390,-627.93,0.00033972,6]
[385836565,1758058276400,-753.33,0.00033972,6]
[385836566,1758058276411,-400.0,0.00033972,6]
[385836567,1758058276420,-589.16,0.00033972,6]
[385836568,1758058276429,-609.41,0.00033972,6]
[385836569,1758058276439,-510.36,0.00033972,6]
[385836570,1758058276448,-684.2,0.00033972,6]
[385836571,1758058276459,-400.0,0.00033972,6]
[385836572,1758058276469,-511.86,0.00033972,6]
[385836573,1758058276479,-2593.28,0.00033972,6]
[385836574,1758058276489,-764.41,0.00033972,6]
[385836575,1758058276499,-409.5,0.00033972,6]
[385836576,1758058276508,-594.69,0.00033972,6]
[385836577,1758058276518,-400.0,0.00033972,6]
[385836578,1758058276527,-563.64,0.00033972,6]
[385836579,1758058276538,-918.03,0.00033972,6]
[385836580,1758058276549,-3040.54,0.00033972,6]
[385836581,1758058276560,-955.33,0.00033972,6]
[385836582,1758058276571,-659.68,0.00033972,6]
[385836583,1758058276582,-594.06,0.00033972,6]
[385836584,1758058276592,-400.0,0.00033972,6]
[385836585,1758058276602,-585.22,0.00033972,6]
[385836586,1758058276611,-483.06,0.00033972,6]
[385836587,1758058276621,-611.5527599,0.00034,5]
[385836588,1758058276632,-500.0,0.00034023,7]
[385836589,1758058276642,-400.0,0.00034033,6]
[385836590,1758058276652,-400.0,0.00034033,6]
[385836591,1758058276662,-303.10526985,0.00034033,6]
[385836592,1758058276672,-439.88,0.00034033,6]
[385836593,1758058276683,-400.0,0.00034033,6]
[385836594,1758058276693,-400.0,0.00034033,6]
[385836595,1758058276704,-595.63,0.00034033,6]
[385836596,1758058276714,-400.0,0.00034033,6]
[385836597,1758058276723,-461.84,0.00034033,6]
[385836598,1758058276733,-924.18,0.00034033,6]
[385836599,1758058276743,-400.0,0.00034033,6]
[385836600,1758058276752,-400.0,0.00034033,6]
[385836601,1758058276762,-400.0,0.00034033,6]
[385836602,1758058276771,-779.04,0.00034033,6]
[385836603,1758058276782,-11748.77,0.00034033,6]
[385836604,1758058276791,-400.0,0.00034033,6]
[385836605,1758058276801,-846.77,0.00034033,6]
[385836606,1758058276811,-816.88,0.00034033,6]
[385836607,1758058276821,-417.79,0.00034033,6]
[385836608,1758058276831,-617.06,0.00034033,6]
[385836609,1758058276841,-956.08,0.00034033,6]
[385836610,1758058277042,-700.0,0.0003405,7]
[385836611,1758058277058,-1000.0,0.00034054,7]
[385836612,1758058277068,-262.69,0.00034073,30]
[385836613,1758058277078,-1000.0,0.00034078,7]
[385836614,1758058277087,-700.0,0.00034085,7]
[385836615,1758058277096,-1000.0,0.00034098,7]
[385836616,1758058277106,-600.0,0.00034107,7]
[385836617,1758058277116,-1000.0,0.00034115,7]
[385836618,1758058277126,-150.0,0.00034165,7]
[385836619,1758058277136,-500.0,0.00034168,7]
[385836620,1758058277145,-500.0,0.00034201,7]
[385836621,1758058277155,-408.09393866,0.00034207,6]
[385836622,1758058277164,-400.0,0.00034207,6]
[385836623,1758058277174,-400.0,0.00034207,6]
[385836624,1758058277184,-1275.83,0.00034207,6]
[385836625,1758058277194,-408.95,0.00034207,6]
[385836626,1758058277204,-400.0,0.00034207,6]
[385836627,1758058277215,-467.76,0.00034207,6]
[385836628,1758058277224,-400.0,0.00034207,6]
[385836629,1758058277234,-833.72,0.00034207,6]
[385836630,1758058277246,-400.0,0.00034207,6]
[385836631,1758058277256,-400.0,0.00034207,6]
[385836632,1758058277266,-529.33,0.00034207,6]
[385836633,1758058277276,-935.51,0.00034207,6]
[385836634,1758058277286,-500.0,0.00034208,7]
[385836635,1758058277296,-1100.0,0.00034208,7]
[385836636,1758058277307,-500.0,0.00034232,2]
[385836637,1758058277316,-500.0,0.00034232,2]
[385836638,1758058277326,-500.0,0.00034232,2]
[385836639,1758058277336,-150.0,0.00034232,2]
[385836640,1758058277345,-150.0,0.00034232,2]
[385836641,1758058277354,-500.0,0.00034232,2]
[385836642,1758058277363,-150.0,0.00034232,2]
[385836643,1758058277372,-150.0,0.00034232,2]
[385836644,1758058277382,-885.22,0.00034244,6]
[385836645,1758058277390,-882.33,0.00034244,6]
[385836646,1758058277400,-400.0,0.00034244,6]
[385836647,1758058277409,-583.88,0.00034244,6]
[385836648,1758058277418,-400.0,0.00034245,6]
[385836649,1758058277428,-400.0,0.00034245,6]
[385836650,1758058277437,-400.0,0.00034245,6]
[385836651,1758058277449,-400.0,0.00034245,6]
[385836652,1758058277458,-1030.84,0.00034245,6]
[385836653,1758058277468,-400.0,0.00034245,6]
[385836654,1758058277478,-893.45,0.00034245,6]
[385836655,1758058277487,-1390.25,0.00034245,6]
[385836656,1758058277496,-846.78,0.00034245,6]
[385836657,1758058277506,-400.0,0.00034245,6]
[385836658,1758058277516,-463.17,0.00034245,6]
[385836659,1758058277525,-400.0,0.00034245,120]
[385836660,1758058277535,-400.0,0.00034245,6]
[385836661,1758058277545,-400.0,0.00034245,6]
[385836662,1758058277554,-400.0,0.00034245,6]
[385836663,1758058277564,-400.0,0.00034245,6]
[385836664,1758058277574,-405.15,0.00034245,6]
[385836665,1758058277583,-544.6,0.00034245,6]
[385836666,1758058277592,-255.31489793,0.00034245,6]
[385836667,1758058277601,-579.99,0.00034245,6]
[385836668,1758058277612,-400.0,0.00034245,6]
[385836669,1758058277622,-1324.78,0.00034245,6]
[385836670,1758058277631,-400.0,0.00034245,6]
[385836671,1758058277640,-221.86483633,0.00034245,6]
[385836672,1758058277649,-1741.21,0.00034245,6]
[385836673,1758058277659,-400.0,0.00034245,6]
[385836674,1758058277668,-400.0,0.00034245,6]
[385836675,1758058277677,-400.0,0.00034245,6]
[385836676,1758058277687,-709.37,0.00034245,6]
[385836677,1758058277696,-1543.15,0.00034245,6]
[385836678,1758058277706,-400.0,0.00034245,6]
[385836679,1758058277716,-559.75,0.00034245,6]
[385836680,1758058277726,-400.0,0.00034245,6]
[385836681,1758058277735,-400.0,0.00034245,6]
[385836682,1758058277744,-400.0,0.00034245,6]
[385836683,1758058277753,-2637.68,0.00034245,6]
[385836684,1758058277768,-157.33539608,0.00034245,6]
[385836685,1758058277782,-635.22,0.00034245,6]
[385836686,1758058277793,-2060.24,0.00034245,6]
[385836687,1758058277803,-440.36,0.00034245,6]
[385836688,1758058277815,-400.0,0.00034245,6]
[385836689,1758058277825,-1367.84,0.00034245,6]
[385836690,1758058277835,-400.0,0.00034245,6]
[385836691,1758058277845,-400.0,0.00034245,6]
[385836692,1758058277855,-1696.13,0.00034245,6]
[385836693,1758058277864,-400.0,0.00034245,6]
[385836694,1758058277876,-537.85,0.00034245,6]
[385836695,1758058277887,-428.76,0.00034245,6]
[385836696,1758058277897,-806.85,0.00034245,6]
[385836697,1758058277906,-319.97962549,0.00034245,6]
[385836698,1758058277916,-549.91,0.00034245,6]
[385836699,1758058277927,-2321.08,0.00034245,6]
[385836700,1758058277936,-400.0,0.00034245,6]
[385836701,1758058277946,-777.31,0.00034245,6]
[385836702,1758058277956,-400.0,0.00034245,6]
[385836703,1758058277966,-614.12,0.00034245,6]
[385836704,1758058277975,-400.0,0.00034245,6]
[385836705,1758058277985,-400.0,0.00034245,6]
[385836706,1758058277995,-496.81324887,0.00034245,6]
[385836707,1758058278005,-400.0,0.00034245,6]
[385836708,1758058278014,-400.0,0.00034245,6]
[385836709,1758058278024,-400.0,0.00034245,6]
[385836710,1758058278033,-472.73,0.00034245,6]
[385836711,1758058278043,-400.0,0.00034245,6]
[385836712,1758058278053,-400.0,0.00034245,6]
[385836713,1758058278064,-1041.29,0.00034245,6]
[385836714,1758058278074,-400.0,0.00034245,6]
[385836715,1758058278084,-730.67,0.00034245,6]
[385836716,1758058278094,-643.91,0.00034245,6]
[385836717,1758058278104,-2927.23,0.00034245,6]
[385836718,1758058278114,-400.0,0.00034245,6]
[385836719,1758058278124,-461.14,0.00034246,6]
[385836720,1758058278134,-400.0,0.00034246,6]
[385836721,1758058278143,-400.0,0.00034246,6]
[385836722,1758058278153,-318.22038457,0.00034246,6]
[385836723,1758058278163,-530.21,0.00034246,6]
[385836724,1758058278173,-727.34,0.00034246,6]
[385836725,1758058278182,-531.6,0.00034246,6]
[385836726,1758058278193,-2312.57,0.00034246,6]
[385836727,1758058278203,-586.9,0.00034246,6]
[385836728,1758058278215,-400.0,0.00034246,6]
[385836729,1758058278225,-627.93,0.00034246,6]
[385836730,1758058278236,-753.33,0.00034246,6]
[385836731,1758058278247,-400.0,0.00034246,6]
[385836732,1758058278257,-589.16,0.00034246,6]
[385836733,1758058278268,-609.41,0.00034246,6]
[385836734,1758058278279,-510.36,0.00034246,6]
[385836735,1758058278290,-151.0,0.00034246,7]
[385836736,1758058278301,-201.84,0.00034246,7]
[385836737,1758058278311,-154.155266,0.00034246,7]
[385836738,1758058278321,-684.2,0.00034246,6]
[385836739,1758058278332,-151.0,0.00034246,7]
[385836740,1758058278343,-400.0,0.00034246,6]
[385836741,1758058278353,-511.86,0.00034246,6]
[385836742,1758058278364,-2593.28,0.00034246,6]
[385836743,1758058278374,-151.0,0.00034246,7]
[385836744,1758058278383,-764.41,0.00034246,6]
[385836745,1758058278394,-409.5,0.00034246,6]
[385836746,1758058278404,-594.69,0.00034246,6]
[385836747,1758058278414,-400.0,0.00034246,6]
[385836748,1758058278423,-563.64,0.00034246,6]
[385836749,1758058278433,-918.03,0.00034246,6]
[385836750,1758058278443,-3040.54,0.00034246,6]
[385836751,1758058278453,-955.33,0.00034246,6]
[385836752,1758058278465,-659.68,0.00034246,6]
[385836753,1758058278475,-594.06,0.00034246,6]
[385836754,1758058278486,-400.0,0.00034246,6]
[385836755,1758058278496,-585.22,0.00034246,6]